fUST/lending_fUST_20240906
["ID","MTS","AMOUNT","RATE_DAILY","PERIOD"]
[337322043,1725601855356,-2023.84,0.00020383,2]
[337322044,1725601855366,-500.0,0.00020383,2]
[337322045,1725601855375,-500.0,0.00020383,2]
[337322046,1725601855385,-500.0,0.00020383,2]
[337322047,1725601855394,-500.0,0.00020383,2]
[337322048,1725601855403,-500.0,0.00020383,2]
[337322049,1725601855412,-200.3738183,0.00020383,2]
[337322050,1725601855424,-500.0,0.00020383,2]
[337322051,1725601855434,-500.0,0.00020383,2]
[337322052,1725601855443,-846.66,0.00020383,2]
[337322053,1725601855452,-504.74871431,0.00020383,2]
[337322054,1725601855462,-500.0,0.00020383,2]
[337322055,1725601855471,-500.0,0.00020383,2]
[337322056,1725601855480,-151.0,0.00020383,2]
[337322057,1725601855489,-151.0,0.00020383,2]
[337322058,1725601855498,-500.0,0.00020383,2]
[337322059,1725601855507,-619.69010058,0.00020383,2]
[337322060,1725601855516,-500.0,0.00020383,2]
[337322061,1725601855525,-500.0,0.00020383,2]
[337322062,1725601855535,-500.0,0.00020383,2]
[337322063,1725601855545,-500.0,0.00020383,2]
[337322064,1725601855554,-513.1751574,0.00020383,2]
[337322065,1725601855563,-500.0,0.00020383,2]
[337322066,1725601855573,-500.0,0.00020383,2]
[337322067,1725601855582,-1537.21,0.00020383,2]
[337322068,1725601855591,-593.71,0.00020383,2]
[337322069,1725601855600,-500.0,0.00020383,2]
[337322070,1725601855610,-500.0,0.00020383,2]
[337322071,1725601855619,-535.71,0.00020383,2]
[337322072,1725601855628,-547.14487268,0.00020383,2]
[337322073,1725601855637,-855.7,0.00020383,2]
[337322074,1725601855646,-500.0,0.00020383,2]
[337322075,1725601855655,-1278.61,0.00020383,2]
[337322076,1725601855664,-500.0,0.00020383,2]
[337322077,1725601855673,-528.49,0.00020383,2]
[337322078,1725601855682,-754.34,0.00020383,2]
[337322079,1725601855691,-500.0,0.00020383,2]
[337322080,1725601855701,-500.0,0.00020383,2]
[337322081,1725601855711,-500.0,0.00020383,2]
[337322082,1725601855720,-629.57,0.00020383,2]
[337322083,1725601855729,-500.0,0.00020383,2]
[337322084,1725601855738,-500.0,0.00020383,2]
[337322085,1725601855747,-500.0,0.00020383,2]
[337322086,1725601855756,-786.5,0.00020383,2]
[337322087,1725601855765,-500.0,0.00020383,2]
[337322088,1725601855774,-500.0,0.00020383,2]
[337322089,1725601855783,-500.0,0.00020383,2]
[337322090,1725601855793,-525.2029328,0.00020383,2]
[337322091,1725601855802,-500.0,0.00020383,2]
[337322092,1725601855811,-943.04,0.00020383,2]
[337322093,1725601855820,-500.0,0.00020383,2]
[337322094,1725601855829,-500.0,0.00020383,2]
[337322095,1725601855838,-826.7,0.00020383,2]
[337322096,1725601855847,-500.0,0.00020383,2]
[337322097,1725601855857,-500.0,0.00020383,2]
[337322098,1725601855866,-500.0,0.00020383,2]
[337322099,1725601855874,-500.0,0.00020383,2]
[337322100,1725601855883,-500.0,0.00020383,2]
[337322101,1725601855893,-500.0,0.00020383,2]
[337322102,1725601855902,-500.0,0.00020383,2]
[337322103,1725601855911,-500.0,0.00020383,2]
[337322104,1725601855921,-2463.6,0.00020383,2]
[337322105,1725601855931,-500.0,0.00020383,2]
[337322106,1725601855940,-500.0,0.00020383,2]
[337322107,1725601855949,-500.0,0.00020383,2]
[337322108,1725601855957,-646.61,0.00020383,2]
[337322109,1725601855966,-745.5,0.00020383,2]
[337322110,1725601855976,-500.0,0.00020383,2]
[337322111,1725601855985,-2083.29,0.00020383,2]
[337322112,1725601855994,-500.0,0.00020383,2]
[337322113,1725601856004,-500.0,0.00020383,2]
[337322114,1725601856014,-500.0,0.00020383,2]
[337322115,1725601856023,-500.0,0.00020383,2]
[337322116,1725601856033,-500.0,0.00020383,2]
[337322117,1725601856043,-500.0,0.00020383,2]
[337322118,1725601856055,-500.0,0.00020383,2]
[337322119,1725601856065,-500.0,0.00020383,2]
[337322120,1725601856075,-500.0,0.00020383,2]
[337322121,1725601856084,-500.0,0.00020383,2]
[337322122,1725601856095,-500.0,0.00020383,2]
[337322123,1725601856104,-500.0,0.00020383,2]
[337322125,1725601856113,-500.0,0.00020383,2]
[337322126,1725601856122,-503.52492629,0.00020383,2]
[337322127,1725601856133,-307.21814272,0.00020383,2]
[337322128,1725601856142,-500.0,0.00020383,2]
[337322129,1725601856151,-500.0,0.00020383,2]
[337322130,1725601856164,-500.0,0.00020383,2]
[337322131,1725601856174,-500.0,0.00020383,2]
[337322132,1725601856183,-500.0,0.00020383,2]
[337322133,1725601856192,-500.0,0.00020383,2]
[337322134,1725601856201,-500.0,0.00020383,2]
[337322135,1725601856211,-500.0,0.00020383,2]
[337322136,1725601856220,-273.19935482,0.00020383,2]
[337322137,1725601856230,-500.0,0.00020383,2]
[337322138,1725601856240,-501.76345942,0.00020383,2]
[337322139,1725601856249,-379.76151572,0.00020383,2]
[337322140,1725601856259,-500.0,0.00020383,2]
[337322141,1725601856269,-500.0,0.00020383,2]
[337322142,1725601856280,-500.0,0.00020383,2]
[337322143,1725601856291,-500.0,0.00020383,2]
[337322144,1725601856301,-500.0,0.00020383,2]
[337322145,1725601856311,-502.72251865,0.00020383,2]
[337322146,1725601856320,-500.0,0.00020383,2]
[337322147,1725601856330,-500.0,0.00020383,2]
[337322148,1725601856339,-500.0,0.00020383,2]
[337322149,1725601856349,-500.0,0.00020383,2]
[337322150,1725601856360,-500.0,0.00020383,2]
[337322151,1725601856370,-500.0,0.00020383,2]
[337322152,1725601856379,-500.0,0.00020383,2]
[337322153,1725601856389,-505.25074283,0.00020383,2]
[337322154,1725601856400,-500.0,0.00020383,2]
[337322155,1725601856410,-852.95,0.00020383,2]
[337322156,1725601856421,-500.0,0.00020383,2]
[337322157,1725601856430,-500.0,0.00020383,2]
[337322158,1725601856440,-500.0,0.00020383,2]
[337322159,1725601856450,-513.18518072,0.00020383,2]
[337322160,1725601856460,-500.0,0.00020383,2]
[337322161,1725601856470,-504.94051102,0.00020383,2]
[337322162,1725601856480,-500.0,0.00020383,2]
[337322163,1725601856491,-500.0,0.00020383,2]
[337322164,1725601856502,-500.0,0.00020383,2]
[337322165,1725601856513,-500.0,0.00020383,2]
[337322166,1725601856523,-500.0,0.00020383,2]
[337322167,1725601856532,-500.0,0.00020383,2]
[337322168,1725601856541,-500.0,0.00020383,2]
[337322169,1725601856550,-500.0,0.00020383,2]
[337322170,1725601856560,-512.27019683,0.00020383,2]
[337322171,1725601856569,-504.14963447,0.00020383,2]
[337322172,1725601856579,-500.0,0.00020383,2]
[337322173,1725601856588,-500.0,0.00020383,2]
[337322174,1725601856598,-500.0,0.00020383,2]
[337322175,1725601856607,-500.0,0.00020383,2]
[337322176,1725601856616,-151.0,0.00020451,2]
[337322177,1725601856626,-151.0,0.00020451,2]
[337322178,1725601856635,-1679.48,0.00020451,2]
[337322179,1725601856644,-274.1129374,0.00020451,2]
[337322180,1725601856653,-500.0,0.00020451,2]
[337322181,1725601856662,-500.0,0.00020451,2]
[337322182,1725601856672,-500.0,0.00020451,2]
[337322183,1725601856681,-574.28,0.00020451,2]
[337322184,1725601856690,-500.0,0.00020451,2]
[337322185,1725601856700,-500.0,0.00020451,2]
[337322186,1725601856709,-674.41,0.00020451,2]
[337322187,1725601856719,-500.0,0.00020451,2]
[337322188,1725601856728,-500.0,0.00020451,2]
[337322189,1725601856738,-500.0,0.00020451,2]
[337322190,1725601856747,-500.0,0.00020451,2]
[337322191,1725601856756,-500.0,0.00020451,2]
[337322192,1725601856765,-383.9212287,0.00020451,2]
[337322193,1725601856776,-500.0,0.00020451,2]
[337322194,1725601856785,-500.0,0.00020451,2]
[337322195,1725601856795,-1308.07,0.00020451,2]
[337322196,1725601856806,-500.0,0.00020451,2]
[337322197,1725601856816,-500.0,0.00020451,2]
[337322198,1725601856826,-500.0,0.00020451,2]
[337322199,1725601856837,-506.49160367,0.00020482,2]
[337322200,1725601856848,-500.0,0.00020482,2]
[337322201,1725601856858,-214.69227494,0.00020482,2]
[337322202,1725601856868,-500.0,0.00020482,2]
[337322203,1725601856877,-500.0,0.00020482,2]
[337322204,1725601856886,-500.0,0.00020482,2]
[337322205,1725601856895,-543.72403102,0.00020482,2]
[337322206,1725601856905,-500.0,0.00020482,2]
[337322207,1725601856914,-500.0,0.00020482,2]
[337322208,1725601856925,-500.0,0.00020482,2]
[337322209,1725601856936,-500.0,0.00020482,2]
[337322210,1725601856946,-500.0,0.00020482,2]
[337322211,1725601856956,-500.0,0.00020482,2]
[337322212,1725601856966,-517.94922226,0.00020482,2]
[337322213,1725601856975,-500.0,0.00020482,2]
[337322214,1725601856985,-500.0,0.00020482,2]
[337322215,1725601856995,-500.0,0.00020482,2]
[337322216,1725601857121,-500.0,0.00020482,2]
[337322217,1725601857131,-500.0,0.00020482,2]
[337322218,1725601857141,-500.0,0.00020482,2]
[337322219,1725601857150,-391.09612941,0.00020482,2]
[337322220,1725601857161,-500.0,0.00020482,2]
[337322221,1725601857170,-500.0,0.00020482,2]
[337322222,1725601857181,-500.0,0.00020482,2]
[337322223,1725601857194,-504.99450898,0.00020482,2]
[337322224,1725601857203,-506.68881237,0.00020482,2]
[337322225,1725601857213,-500.0,0.00020482,2]
[337322226,1725601857223,-500.0,0.00020482,2]
[337322227,1725601857233,-500.0,0.00020482,2]
[337322228,1725601857242,-500.0,0.00020482,2]
[337322229,1725601857252,-151.0,0.00020483,2]
[337322230,1725601857262,-151.886696,0.00020483,2]
[337322231,1725601857273,-151.0,0.00020483,2]
[337322232,1725601857283,-650.31440767,0.00020545,2]
[337322233,1725601857292,-3491.67262316,0.00020547,2]
[337322234,1725601857304,-1545.06,0.00020617,2]
[337322235,1725601857314,-5836.77,0.00020617,2]
[337322236,1725601857324,-580.19,0.00020617,2]
[337322237,1725601857337,-1217.36,0.00020617,2]
[337322238,1725601857347,-8279.81,0.00020617,2]
[337322239,1725601857357,-500.0,0.00020617,2]
[337322240,1725601857367,-618.73,0.00020617,2]
[337322241,1725601857377,-500.0,0.00020617,2]
[337322242,1725601857386,-500.0,0.00020617,2]
[337322243,1725601857396,-1434.21,0.00020617,2]
[337322244,1725601857405,-1597.52,0.00020617,2]
[337322245,1725601857415,-811.21,0.00020617,2]
[337322246,1725601857424,-2057.13,0.00020617,2]
[337322247,1725601857434,-610.41953124,0.00020617,2]
[337322248,1725601857443,-917.15,0.00020617,2]
[337322249,1725601857453,-1054.75,0.00020617,2]
[337322250,1725601857462,-1743.23,0.00020617,2]
[337322251,1725601857472,-500.0,0.00020617,2]
[337322252,1725601857482,-500.0,0.00020618,2]
[337322253,1725601857491,-500.0,0.00020618,2]
[337322254,1725601857501,-500.0,0.00020618,2]
[337322255,1725601857511,-500.0,0.00020618,2]
[337322256,1725601857521,-500.0,0.00020618,2]
[337322257,1725601857530,-500.0,0.00020618,2]
[337322258,1725601857540,-500.0,0.00020618,2]
[337322259,1725601857550,-500.0,0.00020618,2]
[337322260,1725601857560,-500.0,0.00020618,2]
[337322261,1725601857569,-151.0,0.00020618,2]
[337322262,1725601857579,-500.0,0.00020618,2]
[337322263,1725601857589,-500.0,0.00020618,2]
[337322264,1725601857599,-151.0,0.00020618,2]
[337322265,1725601857608,-500.0,0.00020618,2]
[337322266,1725601857618,-500.0,0.00020618,2]
[337322267,1725601857628,-167.409688,0.00020618,2]
[337322268,1725601857638,-500.0,0.00020618,2]
[337322269,1725601857648,-167.409688,0.00020618,2]
[337322270,1725601857658,-920.31,0.00020618,2]
[337322271,1725601857668,-453.55564393,0.00020618,2]
[337322272,1725601857679,-500.0,0.00020618,2]
[337322273,1725601857689,-715.00735,0.00020618,2]
[337322274,1725601857699,-500.0,0.00020618,2]
[337322275,1725601857710,-715.00735,0.00020618,2]
[337322276,1725601857719,-151.0,0.00020618,2]
[337322277,1725601857728,-500.0,0.00020618,2]
[337322278,1725601857738,-1408.48,0.00020618,2]
[337322279,1725601857747,-500.0,0.00020618,2]
[337322280,1725601857757,-500.0,0.00020618,2]
[337322281,1725601857766,-200.0,0.00020618,2]
[337322282,1725601857776,-151.0,0.00020618,2]
[337322283,1725601857786,-500.0,0.00020618,2]
[337322284,1725601857795,-151.0,0.00020618,2]
[337322285,1725601857805,-500.0,0.00020618,2]
[337322286,1725601857814,-500.0,0.00020618,2]
[337322287,1725601857824,-500.0,0.00020618,2]
[337322288,1725601857833,-500.0,0.00020618,2]
[337322289,1725601857843,-500.0,0.00020618,2]
[337322290,1725601857852,-1076.004857,0.00020618,2]
[337322291,1725601857862,-500.0,0.00020618,2]
[337322292,1725601857882,-944.83,0.00020618,2]
[337322293,1725601857892,-1076.004857,0.00020618,2]
[337322294,1725601857903,-869.82,0.00020618,2]
[337322295,1725601857913,-506.90326031,0.00020618,2]
[337322296,1725601857925,-500.0,0.00020618,2]
[337322297,1725601857934,-1306.663022,0.00020618,2]
[337322298,1725601857944,-500.0,0.00020618,2]
[337322299,1725601857953,-500.0,0.00020618,2]
[337322300,1725601857963,-1306.663022,0.00020618,2]
[337322301,1725601857973,-500.0,0.00020618,2]
[337322302,1725601857982,-503.73757719,0.00020618,2]
[337322303,1725601857992,-1296.47,0.00020618,2]
[337322304,1725601858001,-500.0,0.00020618,2]
[337322305,1725601858011,-724.63,0.00020618,2]
[337322306,1725601858021,-500.0,0.00020618,2]
[337322307,1725601858032,-500.0,0.00020618,2]
[337322308,1725601858042,-500.0,0.00020618,2]
[337322309,1725601858055,-500.0,0.00020618,2]
[337322310,1725601858065,-500.0,0.00020618,2]
[337322311,1725601858074,-707.11,0.00020618,2]
[337322312,1725601858084,-500.0,0.00020618,2]
[337322313,1725601858097,-500.0,0.00020618,2]
[337322314,1725601858106,-500.0,0.00020618,2]
[337322315,1725601858115,-500.0,0.00020618,2]
[337322316,1725601858126,-500.0,0.00020618,2]
[337322317,1725601858137,-500.0,0.00020618,2]
[337322318,1725601858148,-151.0,0.00020618,2]
[337322319,1725601858158,-500.0,0.00020618,2]
[337322320,1725601858168,-500.0,0.00020618,2]
[337322321,1725601858177,-500.0,0.00020618,2]
[337322322,1725601858187,-2766.06,0.00020618,2]
[337322323,1725601858196,-500.0,0.00020618,2]
[337322324,1725601858206,-500.0,0.00020618,2]
[337322325,1725601858216,-500.0,0.00020618,2]
[337322326,1725601858225,-500.0,0.00020618,2]
[337322327,1725601858235,-500.0,0.00020618,2]
[337322328,1725601858245,-500.0,0.00020618,2]
[337322329,1725601858255,-151.0,0.00020618,2]
[337322330,1725601858264,-500.0,0.00020618,2]
[337322331,1725601858274,-151.0,0.00020618,2]
[337322332,1725601858284,-500.0,0.00020618,2]
[337322333,1725601858293,-500.0,0.00020618,2]
[337322334,1725601858303,-506.4,0.00020618,2]
[337322335,1725601858315,-500.0,0.00020618,2]
[337322336,1725601858326,-500.0,0.00020618,2]
[337322337,1725601858336,-500.0,0.00020618,2]
[337322338,1725601858348,-151.0,0.00020618,2]
[337322339,1725601858358,-500.0,0.00020618,2]
[337322340,1725601858367,-500.0,0.00020618,2]
[337322341,1725601858377,-1281.328407,0.00020618,2]
[337322342,1725601858386,-500.0,0.00020618,2]
[337322343,1725601858395,-1281.328407,0.00020618,2]
[337322344,1725601858405,-500.0,0.00020618,2]
[337322345,1725601858414,-500.0,0.00020618,2]
[337322346,1725601858423,-500.0,0.00020618,2]
[337322347,1725601858433,-500.0,0.00020618,2]
[337322348,1725601858443,-500.0,0.00020618,2]
[337322349,1725601858452,-500.0,0.00020618,2]
[337322350,1725601858463,-500.0,0.00020618,2]
[337322351,1725601858474,-500.0,0.00020618,2]
[337322352,1725601858484,-152.35540448,0.00020618,2]
[337322353,1725601858495,-1055.55433214,0.00020621,2]
[337322354,1725601858506,-500.90071859,0.00020621,2]
[337322355,1725601858515,-907.39730399,0.00020621,2]
[337322356,1725601858526,-179.02508858,0.00020621,2]
[337322357,1725601858536,-500.0,0.00020638,2]
[337322358,1725601858548,-500.0,0.00020638,2]
[337322359,1725601858557,-508.20528604,0.00020638,2]
[337322360,1725601858567,-500.0,0.00020638,2]
[337322361,1725601858576,-500.0,0.00020638,2]
[337322362,1725601858586,-500.0,0.00020638,2]
[337322363,1725601858595,-627.23,0.00020638,2]
[337322364,1725601858604,-500.0,0.00020638,2]
[337322365,1725601858613,-619.65,0.00020638,2]
[337322366,1725601858622,-715.68,0.00020638,2]
[337322367,1725601858631,-500.0,0.00020638,2]
[337322368,1725601858640,-500.0,0.00020638,2]
[337322369,1725601858650,-500.0,0.00020638,2]
[337322370,1725601858659,-500.0,0.00020638,2]
[337322371,1725601858670,-500.0,0.00020638,2]
[337322372,1725601858683,-500.0,0.00020638,2]
[337322373,1725601858692,-747.01,0.00020638,2]
[337322374,1725601858702,-500.0,0.00020638,2]
[337322375,1725601858711,-500.0,0.00020638,2]
[337322376,1725601858721,-512.91056482,0.00020638,2]
[337322377,1725601858730,-1084.19,0.00020638,2]
[337322378,1725601858740,-500.0,0.00020638,2]
[337322379,1725601858749,-151.0,0.00020638,2]
[337322380,1725601858760,-500.0,0.00020638,2]
[337322381,1725601858887,-500.0,0.00020638,2]
[337322382,1725601858913,-500.0,0.00020638,2]
[337322383,1725601858927,-500.0,0.00020638,2]
[337322384,1725601858937,-500.0,0.00020638,2]
[337322385,1725601858949,-665.76,0.00020638,2]
[337322386,1725601858960,-500.0,0.00020638,2]
[337322387,1725601858969,-500.0,0.00020638,2]
[337322388,1725601858978,-500.0,0.00020638,2]
[337322389,1725601858988,-500.0,0.00020638,2]
[337322390,1725601858997,-820.41,0.00020638,2]
[337322391,1725601859007,-500.0,0.00020638,2]
[337322392,1725601859016,-500.0,0.00020638,2]
[337322393,1725601859025,-500.0,0.00020638,2]
[337322394,1725601859034,-915.58,0.00020638,2]
[337322395,1725601859050,-500.0,0.00020638,2]
[337322396,1725601859059,-500.0,0.00020638,2]
[337322397,1725601859069,-153.868303,0.00020638,2]
[337322398,1725601859078,-500.0,0.00020638,2]
[337322399,1725601859088,-151.0,0.00020638,2]
[337322400,1725601859097,-500.0,0.00020638,2]
[337322401,1725601859107,-500.0,0.00020638,2]
[337322402,1725601859117,-500.0,0.00020638,2]
[337322403,1725601859126,-500.0,0.00020638,2]
[337322404,1725601859135,-235.884571,0.00020638,2]
[337322405,1725601859146,-235.884571,0.00020638,2]
[337322406,1725601859156,-500.0,0.00020638,2]
[337322407,1725601859167,-1560.23,0.00020638,2]
[337322408,1725601859178,-500.0,0.00020638,2]
[337322409,1725601859187,-472.22790551,0.00020638,2]
[337322410,1725601859197,-500.0,0.00020638,2]
[337322411,1725601859208,-551.60977079,0.00020638,2]
[337322412,1725601859219,-1210.73,0.00020638,2]
[337322413,1725601859231,-500.0,0.00020638,2]
[337322414,1725601859241,-500.0,0.00020638,2]
[337322415,1725601859252,-342.465442,0.00020638,2]
[337322416,1725601859262,-585.83,0.00020638,2]
[337322417,1725601859272,-342.465442,0.00020638,2]
[337322418,1725601859281,-151.0,0.00020638,2]
[337322419,1725601859291,-151.0,0.00020638,2]
[337322420,1725601859301,-1316.58,0.00020638,2]
[337322421,1725601859310,-511.22513631,0.00020638,2]
[337322422,1725601859319,-1023.49,0.00020638,2]
[337322423,1725601859330,-500.0,0.00020638,2]
[337322424,1725601859339,-500.0,0.00020638,2]
[337322425,1725601859349,-500.0,0.00020638,2]
[337322426,1725601859359,-500.0,0.00020638,2]
[337322427,1725601859369,-500.0,0.00020638,2]
[337322428,1725601859378,-27027.81,0.00020638,2]
[337322429,1725601859388,-500.0,0.00020638,2]
[337322430,1725601859397,-1203.92,0.00020638,2]
[337322431,1725601859407,-500.0,0.00020638,2]
[337322432,1725601859418,-1065.29,0.00020638,2]
[337322433,1725601859427,-1409.08,0.00020638,2]
[337322434,1725601859437,-1093.54,0.00020638,2]
[337322435,1725601859447,-1935.34,0.00020638,2]
[337322436,1725601859457,-500.0,0.00020638,2]
[337322437,1725601859466,-7874.67,0.00020638,2]
[337322438,1725601859477,-500.0,0.00020638,2]
[337322439,1725601859487,-2127.98,0.00020638,2]
[337322440,1725601859497,-910.33,0.00020638,2]
[337322441,1725601859512,-1347.96,0.00020638,2]
[337322442,1725601859522,-500.0,0.00020638,2]
[337322443,1725601859532,-1399.9,0.00020638,2]
[337322444,1725601859542,-500.0,0.00020638,2]
[337322445,1725601859553,-500.0,0.00020638,2]
[337322446,1725601859563,-500.0,0.00020638,2]
[337322447,1725601859575,-500.0,0.00020638,2]
[337322448,1725601859584,-500.0,0.00020638,2]
[337322449,1725601859594,-500.0,0.00020638,2]
[337322450,1725601859606,-500.0,0.00020638,2]
[337322451,1725601859617,-1129.76,0.00020638,2]
[337322452,1725601859627,-500.0,0.00020638,2]
[337322453,1725601859637,-500.0,0.00020638,2]
[337322454,1725601859647,-500.0,0.00020638,2]
[337322455,1725601859658,-500.0,0.00020638,2]
[337322456,1725601859669,-571.31,0.00020638,2]
[337322457,1725601859678,-654.5,0.00020638,2]
[337322458,1725601859688,-1211.83,0.00020638,2]
[337322459,1725601859697,-535.48,0.00020638,2]
[337322460,1725601859706,-2392.4,0.00020638,2]
[337322461,1725601859716,-1277.93,0.00020638,2]
[337322462,1725601859725,-500.0,0.00020638,2]
[337322463,1725601859735,-116073.84,0.00020638,2]
[337322464,1725601859746,-500.0,0.00020638,2]
[337322465,1725601859756,-500.0,0.00020638,2]
[337322466,1725601859766,-699.45,0.00020638,2]
[337322467,1725601859776,-500.0,0.00020638,2]
[337322468,1725601859786,-500.0,0.00020638,2]
[337322469,1725601859798,-500.0,0.00020638,2]
[337322470,1725601859809,-1566.33,0.00020638,2]
[337322471,1725601859819,-500.0,0.00020638,2]
[337322472,1725601859829,-500.0,0.00020638,2]
[337322473,1725601859844,-500.0,0.00020638,2]
[337322474,1725601859854,-500.0,0.00020638,2]
[337322475,1725601859863,-58386.62,0.00020638,2]
[337322476,1725601859873,-500.0,0.00020638,2]
[337322477,1725601859882,-500.0,0.00020638,2]
[337322478,1725601859892,-500.0,0.00020638,2]
[337322479,1725601859901,-500.0,0.00020638,2]
[337322480,1725601859911,-1403.48,0.00020638,2]
[337322481,1725601859922,-151.0,0.00020647,2]
[337322482,1725601859931,-226.468778,0.00020647,2]
[337322483,1725601859940,-167.409688,0.00020647,2]
[337322484,1725601859950,-167.409688,0.00020647,2]
[337322485,1725601859960,-715.00735,0.00020647,2]
[337322486,1725601859969,-715.00735,0.00020647,2]
[337322487,1725601859978,-151.0,0.00020647,2]
[337322488,1725601859988,-151.0,0.00020647,2]
[337322489,1725601859997,-171.571723,0.00020647,2]
[337322490,1725601860008,-1076.004857,0.00020647,2]
[337322491,1725601860018,-1076.004857,0.00020647,2]
[337322492,1725601860029,-1306.663022,0.00020647,2]
[337322493,1725601860039,-1306.663022,0.00020647,2]
[337322494,1725601860052,-151.0,0.00020647,2]
[337322495,1725601860061,-151.0,0.00020647,2]
[337322496,1725601860071,-151.0,0.00020647,2]
[337322497,1725601860080,-151.0,0.00020647,2]
[337322498,1725601860090,-1281.328407,0.00020647,2]
[337322499,1725601860101,-1281.328407,0.00020647,2]
[337322500,1725601860111,-151.0,0.00020648,2]
[337322501,1725601860122,-151.0,0.00020648,2]
[337322502,1725601860132,-151.0,0.00020648,2]
[337322503,1725601860142,-151.0,0.00020648,2]
[337322504,1725601860152,-151.0,0.00020648,2]
[337322505,1725601860162,-151.0,0.00020648,2]
[337322506,1725601860172,-151.0,0.00020656,2]
[337322507,1725601860181,-188.508589,0.00020656,2]
[337322508,1725601860191,-151.0,0.00020656,2]
[337322509,1725601860201,-235.884571,0.00020656,2]
[337322510,1725601860212,-235.884571,0.00020656,2]
[337322511,1725601860222,-342.465442,0.00020656,2]
[337322512,1725601860232,-342.465442,0.00020656,2]
[337322513,1725601860242,-151.0,0.00020656,2]
[337322514,1725601860252,-151.0,0.00020656,2]
[337322515,1725601860262,-500.0,0.00020657,2]
[337322516,1725601860272,-500.0,0.00020657,2]
[337322517,1725601860281,-500.0,0.00020657,2]
[337322518,1725601860291,-195.90199049,0.00020657,2]
[337322519,1725601860300,-500.0,0.00020657,2]
[337322520,1725601860310,-500.0,0.00020657,2]
[337322521,1725601860319,-500.0,0.00020657,2]
[337322522,1725601860329,-500.0,0.00020657,2]
[337322523,1725601860341,-500.0,0.00020657,2]
[337322524,1725601860352,-512.43267611,0.00020657,2]
[337322525,1725601860363,-500.0,0.00020657,2]
[337322526,1725601860372,-500.0,0.00020657,2]
[337322527,1725601860382,-500.0,0.00020657,2]
[337322528,1725601860391,-734.73,0.00020657,2]
[337322529,1725601860401,-356.97419144,0.00020657,2]
[337322530,1725601860417,-500.0,0.00020657,2]
[337322531,1725601860431,-1625.87,0.00020657,2]
[337322532,1725601860441,-500.0,0.00020657,2]
[337322533,1725601860598,-346.04790421,0.00020657,2]
[337322534,1725601860608,-500.0,0.00020657,2]
[337322535,1725601860618,-500.0,0.00020657,2]
[337322536,1725601860627,-500.0,0.00020657,2]
[337322537,1725601860636,-500.0,0.00020657,2]
[337322538,1725601860647,-475.74077969,0.00020657,2]
[337322539,1725601860657,-500.0,0.00020657,2]
[337322540,1725601860668,-500.0,0.00020657,2]
[337322541,1725601860677,-500.0,0.00020657,2]
[337322542,1725601860686,-500.0,0.00020657,2]
[337322543,1725601860695,-500.0,0.00020657,2]